bitfinex-derivatives/quotes_BTCF0:USTF0_20251002
["timestamp","ask_amount","ask_price","bid_price","bid_amount"]
[1759411254639,1.53984846,119200.0,119190.0,0.36254076]
[1759411255040,0.77772846,119200.0,119190.0,0.03551]
[1759411255240,1.53976846,119200.0,119190.0,0.03551]
[1759411255539,0.77772846,119200.0,119190.0,0.03551]
[1759411255741,1.53972846,119200.0,119190.0,0.03551]
[1759411256342,0.77772846,119200.0,119190.0,0.03551]
[1759411256542,1.53968846,119200.0,119190.0,0.36254076]
[1759411257443,1.2126177,119200.0,119190.0,0.44640006]
[1759411257938,0.4506977,119200.0,119190.0,0.44640006]
[1759411258144,0.8516977,119200.0,119190.0,0.80720006]
[1759411258446,0.8516921,119200.0,119190.0,0.80720006]
[1759411258846,0.0898921,119200.0,119190.0,0.80720006]
[1759411259046,0.8516521,119200.0,119190.0,0.80720006]
[1759411259339,0.7678,119200.0,119190.0,0.80720006]
[1759411259742,0.00604,119200.0,119190.0,0.80720006]
[1759411260049,0.8516921,119200.0,119190.0,0.80720006]
[1759411260547,0.8516921,119200.0,119190.0,1.57938974]
[1759411260548,0.00604,119200.0,119190.0,1.57938974]
[1759411261445,0.68783076,119230.0,119190.0,1.57938974]
[1759411261446,0.00248,119230.0,119220.0,0.119348]
[1759411261643,0.00248,119230.0,119220.0,1.13420952]
[1759411261834,0.0838284,119240.0,119230.0,0.119341]
[1759411262036,0.8483412,119250.0,119240.0,0.119334]
[1759411262240,0.8483412,119250.0,119240.0,0.68957152]
[1759411262541,0.0838612,119250.0,119240.0,0.68957152]
[1759411262739,0.0838569,119250.0,119240.0,0.77339552]
[1759411262936,0.0863369,119250.0,119240.0,0.77339552]
[1759411263140,0.0863369,119250.0,119240.0,0.68957152]
[1759411263346,0.0863369,119250.0,119240.0,0.36254076]
[1759411263542,0.41336766,119250.0,119240.0,0.36254076]
[1759411263741,0.41936766,119250.0,119240.0,0.36254076]
[1759411263944,0.41936766,119250.0,119240.0,0.03551]
[1759411264146,0.41936766,119250.0,119240.0,0.36254076]
[1759411264346,0.0923369,119250.0,119240.0,0.03551]
[1759411264544,0.0863369,119250.0,119240.0,0.03551]
[1759411264845,0.85494665,119250.0,119240.0,0.03551]
[1759411265046,0.0838242,119240.0,119230.0,0.01332]
[1759411265238,0.0863112,119230.0,119220.0,0.39631]
[1759411266345,0.0863112,119230.0,119220.0,0.03551]
[1759411266542,0.0863112,119230.0,119220.0,0.52715795]
[1759411266848,0.8463512,119230.0,119220.0,0.52715795]
[1759411267043,0.083827,119240.0,119230.0,0.1193412]
[1759411267246,0.846427,119240.0,119230.0,0.52715095]
[1759411267549,0.848907,119240.0,119230.0,0.52715095]
[1759411268849,0.846427,119240.0,119230.0,0.52715095]
[1759411269054,0.847387,119240.0,119230.0,0.88795095]
[1759411269255,0.848387,119240.0,119230.0,0.88795095]
[1759411269750,0.848267,119240.0,119230.0,0.88795095]
[1759411270144,0.848227,119240.0,119230.0,0.88795095]
[1759411270444,0.085827,119240.0,119230.0,0.8345547]
[1759411270644,0.62392,119240.0,119230.0,0.8345547]
[1759411271652,0.76432,119240.0,119230.0,0.8345547]
[1759411272351,0.002,119240.0,119230.0,0.8345547]
[1759411273251,0.0858242,119240.0,119230.0,0.8345547]
[1759411273455,0.0883042,119240.0,119230.0,0.8345547]
[1759411274054,0.0858242,119240.0,119230.0,0.8345547]
[1759411275352,0.002,119240.0,119230.0,0.4801412]
[1759411275655,0.002,119240.0,119230.0,0.8345547]
[1759411278061,0.0858242,119240.0,119230.0,0.4801412]
[1759411278359,0.0883042,119240.0,119230.0,0.8345547]
[1759411278655,0.002,119240.0,119230.0,0.8345547]
[1759411280653,0.002,119240.0,119230.0,0.4801412]
[1759411280856,0.0895422,119280.0,119270.0,0.03495]
[1759411281158,0.0895422,119280.0,119270.0,0.8339663]
[1759411281549,0.4895422,119280.0,119270.0,0.03495]
[1759411281753,0.0838028,119270.0,119260.0,0.01274]
[1759411282056,0.0895428,119270.0,119260.0,0.01274]
[1759411282451,0.0895428,119270.0,119260.0,0.03495]
[1759411283255,0.0895499,119260.0,119250.0,0.39484]
[1759411283555,0.8529499,119260.0,119250.0,0.03404]
[1759411283761,1.2137499,119260.0,119250.0,0.01274]
[1759411284549,1.2137499,119260.0,119250.0,0.03404]
[1759411284854,0.0895498,119260.0,119250.0,0.8370704]
[1759411285357,0.45723683,119280.0,119260.0,0.03487]
[1759411285358,0.0895469,119270.0,119260.0,0.03487]
[1759411285554,0.7263469,119270.0,119260.0,0.3892835]
[1759411285962,0.7263469,119270.0,119260.0,0.03487]
[1759411286459,1.4871469,119270.0,119260.0,0.01357]
[1759411286655,1.1263469,119270.0,119260.0,0.03587]
[1759411286861,0.4895469,119270.0,119260.0,0.1196799]
[1759411287154,1.2531069,119270.0,119260.0,0.1186799]
[1759411287354,0.0895469,119270.0,119260.0,0.1186799]
[1759411287660,0.8531069,119270.0,119260.0,0.03487]
[1759411290066,1.6139069,119270.0,119260.0,0.01357]
[1759411290255,0.0895498,119260.0,119250.0,0.07919892]
[1759411291364,0.0895498,119260.0,119250.0,0.16301582]
[1759411291563,0.8530698,119260.0,119250.0,0.52681582]
[1759411291762,0.8530698,119260.0,119250.0,0.88122932]
[1759411291960,0.00574,119260.0,119250.0,0.88422932]
[1759411292159,0.83748327,119260.0,119250.0,0.88422932]
[1759411292360,0.75367337,119260.0,119250.0,0.88422932]
[1759411292561,0.0838075,119270.0,119260.0,0.1186799]
[1759411292858,0.8475675,119270.0,119260.0,0.03487]
[1759411293059,0.8475275,119270.0,119260.0,0.03487]
[1759411294266,0.8474875,119270.0,119260.0,0.03487]
[1759411294670,0.8474875,119270.0,119260.0,0.1186799]
[1759411295062,0.8474875,119270.0,119260.0,0.03487]
[1759411296166,0.8474875,119270.0,119260.0,0.1186799]
[1759411297368,0.8474875,119270.0,119260.0,0.4794799]
[1759411298573,0.8474875,119270.0,119260.0,0.03487]
[1759411298777,0.86762956,119270.0,119260.0,0.03487]
[1759411298971,1.22842956,119270.0,119260.0,0.03487]
[1759411299468,0.46474956,119270.0,119260.0,0.03487]
[1759411299771,1.22810956,119270.0,119260.0,0.03487]
[1759411300368,1.2079675,119270.0,119260.0,0.03487]
[1759411300569,1.2079675,119270.0,119260.0,0.01357]
[1759411300877,1.2079675,119270.0,119260.0,0.03487]
[1759411301277,1.2079629,119270.0,119260.0,0.03487]
[1759411302980,1.2079629,119270.0,119260.0,0.16383882]
[1759411303174,1.2079629,119270.0,119260.0,0.08002892]
[1759411303479,1.2079629,119270.0,119250.0,0.8117691]
[1759411303480,0.0838099,119260.0,119250.0,0.04515892]
[1759411303681,0.4446099,119260.0,119250.0,0.04515892]
[1759411303883,1.12392,119260.0,119250.0,0.16384582]
[1759411304087,1.2077299,119260.0,119250.0,0.16384582]
[1759411304489,0.8469299,119260.0,119250.0,0.16384582]
[1759411305286,0.8469299,119260.0,119250.0,0.16984582]
[1759411305988,1.2077299,119260.0,119250.0,0.16984582]
[1759411307486,1.2077299,119260.0,119250.0,0.49603645]
[1759411307691,0.4446099,119260.0,119250.0,0.49603645]
[1759411307989,1.2074899,119260.0,119250.0,0.49603645]
[1759411308188,1.2074899,119260.0,119250.0,0.08602892]
[1759411308388,1.95383417,119260.0,119250.0,0.006]
[1759411308581,1.19095417,119260.0,119250.0,0.006]
[1759411308890,1.95411417,119260.0,119250.0,0.006]
[1759411309694,1.95411417,119260.0,119240.0,0.14247192]
[1759411309695,0.0838169,119250.0,119240.0,0.14247192]
[1759411309984,0.4446169,119250.0,119240.0,0.14247192]
[1759411310492,0.4446169,119250.0,119240.0,0.16463192]
[1759411311494,0.4446169,119250.0,119240.0,0.17063192]
[1759411312082,1.2075769,119250.0,119240.0,0.17063192]
[1759411312589,1.2075769,119250.0,119240.0,0.14847192]
[1759411312994,1.2075769,119250.0,119240.0,0.17063192]
[1759411313592,1.2076169,119250.0,119240.0,0.49682255]
[1759411314093,0.3608,119260.0,119250.0,0.1194669]
[1759411314396,1.12368,119260.0,119250.0,0.49077653]
[1759411314992,0.3608,119260.0,119250.0,0.49077653]
[1759411315192,1.12384,119260.0,119250.0,0.49077653]
[1759411315396,1.2076499,119260.0,119250.0,0.49077653]
[1759411315588,0.4446099,119260.0,119250.0,0.1645859]
[1759411315793,1.2075699,119260.0,119250.0,0.49077653]
[1759411317500,0.4446099,119260.0,119250.0,0.49077653]
[1759411317801,1.2075699,119260.0,119250.0,0.49677653]
[1759411317997,1.2075699,119260.0,119250.0,0.1705859]
[1759411318197,1.2075699,119260.0,119250.0,0.49677653]
[1759411320291,1.2073299,119260.0,119250.0,0.49677653]
[1759411321004,0.4446099,119260.0,119250.0,0.49677653]
[1759411321215,0.4446071,119270.0,119260.0,0.1194599]
[1759411321503,1.2072871,119270.0,119260.0,0.49076953]
[1759411323803,0.4446071,119270.0,119260.0,0.49076953]
[1759411324010,1.2073271,119270.0,119260.0,0.49076953]
[1759411327301,0.4446071,119270.0,119260.0,0.49076953]
[1759411327616,1.2069671,119270.0,119260.0,0.44565053]
[1759411328115,1.2069671,119270.0,119260.0,0.36184063]
[1759411328411,0.4446071,119270.0,119260.0,0.44565033]
[1759411328914,1.2068871,119270.0,119260.0,0.44565033]
[1759411330510,1.2068071,119270.0,119260.0,0.44565033]
[1759411331213,1.2068071,119270.0,119260.0,0.1194597]
[1759411331506,1.2067271,119270.0,119260.0,0.44565033]
[1759411331912,1.2066871,119270.0,119260.0,0.44565033]
[1759411332412,0.4446071,119270.0,119260.0,0.44558953]
[1759411332606,1.2066071,119270.0,119260.0,0.44558953]
[1759411336311,1.2066071,119270.0,119260.0,0.77171936]
[1759411338310,0.4446071,119270.0,119260.0,0.77171936]
[1759411338512,1.2062471,119270.0,119260.0,0.77171936]
[1759411339217,0.4446071,119270.0,119260.0,0.77171936]
[1759411339407,1.2062071,119270.0,119260.0,0.77171936]
[1759411339803,1.2062071,119270.0,119260.0,0.1194597]
[1759411340110,1.2062071,119270.0,119260.0,0.77171936]
[1759411340713,1.2061271,119270.0,119260.0,0.77171936]
[1759411341516,0.4446071,119270.0,119260.0,0.77171936]
[1759411341715,1.2061271,119270.0,119260.0,0.77171936]
[1759411342515,1.2061271,119270.0,119260.0,0.83204898]
[1759411342816,1.2061271,119270.0,119260.0,0.77171936]
[1759411345812,1.2061271,119270.0,119260.0,0.83204898]
[1759411346112,1.2061271,119270.0,119260.0,0.17978932]
[1759411346315,0.0838098,119260.0,119250.0,0.15763382]
[1759411346514,0.75711411,119260.0,119250.0,0.09656962]
[1759411346715,0.75711411,119260.0,119250.0,0.50651625]
[1759411347016,0.07018428,119260.0,119250.0,0.50651625]
[1759411347216,0.83170428,119260.0,119250.0,0.50651625]
[1759411347612,0.83170428,119260.0,119250.0,0.1200568]
[1759411347813,0.83170428,119260.0,119250.0,0.44918663]
[1759411348320,0.07018428,119260.0,119250.0,0.44918663]
[1759411348619,0.83162428,119260.0,119250.0,0.44918663]
[1759411349121,0.07018428,119260.0,119250.0,0.44918663]
[1759411349313,0.83170428,119260.0,119250.0,0.44918663]
[1759411351823,1.51863411,119260.0,119250.0,0.44918663]
[1759411352622,1.19250428,119260.0,119250.0,0.44918663]
[1759411353026,1.19250428,119260.0,119250.0,0.1230568]
[1759411353216,1.19250428,119260.0,119250.0,0.44918663]
[1759411353217,1.19242428,119260.0,119250.0,0.44918663]
[1759411353418,1.19242428,119260.0,119250.0,0.18338642]
[1759411353618,1.19242428,119260.0,119250.0,0.50951625]
[1759411354425,1.19242428,119260.0,119250.0,0.18338642]
[1759411354623,1.19242428,119260.0,119250.0,0.50951625]
[1759411354923,0.83162428,119260.0,119250.0,0.50951625]
[1759411355123,1.19242428,119260.0,119250.0,0.50951625]
[1759411355818,0.43098428,119260.0,119250.0,0.50951625]
[1759411356014,1.19218428,119260.0,119250.0,0.50951625]
[1759411356220,0.07018428,119260.0,119250.0,0.50951625]
[1759411356523,0.83138428,119260.0,119250.0,0.50951625]
[1759411356723,0.4446083,119270.0,119260.0,0.1192998]
[1759411357029,0.77073813,119270.0,119260.0,0.49060583]
[1759411357224,1.2057283,119270.0,119260.0,0.49060583]
[1759411357424,1.53185813,119270.0,119260.0,0.44542963]
[1759411357826,0.4446083,119270.0,119260.0,0.44542963]
[1759411358215,1.2056883,119270.0,119260.0,0.44542963]
[1759411358928,1.2056883,119270.0,119260.0,0.49060349]
[1759411359127,0.4446083,119270.0,119260.0,0.49060349]
[1759411359327,1.2057283,119270.0,119260.0,0.49060349]
[1759411361126,0.4446083,119270.0,119260.0,0.49060349]
[1759411361330,1.2056083,119270.0,119260.0,0.81673332]
[1759411361631,1.2056083,119270.0,119260.0,0.77155946]
[1759411362231,1.2056083,119270.0,119260.0,0.44542963]
[1759411362635,1.2055683,119270.0,119260.0,0.44542963]
[1759411362934,1.2055683,119270.0,119260.0,0.83188908]
[1759411363332,0.4446083,119270.0,119260.0,0.83188908]
[1759411363731,1.2054883,119270.0,119260.0,0.83188908]
[1759411363931,0.4446083,119270.0,119260.0,0.83188908]
[1759411364134,1.2054883,119270.0,119260.0,0.77155946]
[1759411364533,0.4446083,119270.0,119260.0,0.77155946]
[1759411364736,0.8446483,119270.0,119260.0,0.89831914]
[1759411364936,0.76084,119270.0,119260.0,0.89831914]
[1759411365230,0.45748654,119280.0,119270.0,0.1192928]
[1759411365432,1.21832654,119280.0,119270.0,0.44542263]
[1759411366736,1.22032654,119280.0,119270.0,0.44542263]
[1759411367239,1.22032654,119280.0,119270.0,0.1192928]
[1759411367637,1.22032654,119280.0,119270.0,0.44542263]
[1759411368343,1.22028654,119280.0,119270.0,0.44542263]
[1759411368541,0.45948654,119280.0,119270.0,0.44542263]
[1759411368742,1.22020654,119280.0,119270.0,0.44542263]
[1759411370039,1.22020654,119280.0,119270.0,0.50575225]
[1759411370544,1.22012654,119280.0,119270.0,0.50575225]
[1759411371341,0.78561637,119280.0,119270.0,0.44542263]
[1759411371542,1.54621637,119280.0,119270.0,0.44542263]
[1759411371743,0.78561637,119280.0,119270.0,0.44542263]
[1759411372041,1.54617637,119280.0,119270.0,0.44542263]
[1759411373346,1.22004654,119280.0,119270.0,0.44542263]
[1759411373546,1.54617637,119280.0,119270.0,0.44542263]
[1759411373948,1.22004654,119280.0,119270.0,0.44542263]
[1759411376046,1.2069961,119280.0,119270.0,0.44542263]
[1759411376446,1.2069161,119280.0,119270.0,0.1192928]
[1759411376647,0.4465961,119280.0,119270.0,0.44542263]
[1759411376842,1.2068761,119280.0,119270.0,0.44542263]
[1759411379447,0.4465961,119280.0,119270.0,0.44542263]
[1759411379640,1.2067561,119280.0,119270.0,0.44542263]
[1759411380152,1.2067561,119280.0,119270.0,0.1192928]
[1759411380447,1.2067561,119280.0,119270.0,0.44542263]
[1759411381548,1.2067558,119280.0,119270.0,0.44542263]
[1759411381946,1.2066358,119280.0,119270.0,0.44542263]
[1759411383546,1.2066358,119280.0,119270.0,0.1192928]
[1759411383746,1.53276563,119280.0,119270.0,0.44542263]
[1759411384438,1.53276563,119280.0,119270.0,0.1192928]
[1759411384640,1.53276563,119280.0,119270.0,0.44542263]
[1759411384844,1.2066358,119280.0,119270.0,0.44542263]
[1759411385249,1.53276563,119280.0,119270.0,0.44542263]
[1759411385453,0.77272563,119280.0,119270.0,0.44542263]
[1759411385652,1.53260563,119280.0,119270.0,0.44542263]
[1759411385852,0.77272563,119280.0,119270.0,0.44542263]
[1759411386048,1.53256563,119280.0,119270.0,0.44542263]
[1759411386450,1.53252563,119280.0,119270.0,0.44542263]
[1759411387053,0.77272563,119280.0,119270.0,0.44542263]
[1759411387353,0.3628,119280.0,119270.0,0.44542263]
[1759411387542,1.12256,119280.0,119270.0,0.44542263]
[1759411388353,1.2063557,119280.0,119270.0,0.1192928]
[1759411388552,1.2063557,119280.0,119270.0,0.44542263]
[1759411389251,0.4465957,119280.0,119270.0,0.50575225]
[1759411389554,1.2063557,119280.0,119270.0,0.50575225]
[1759411390948,1.2063557,119280.0,119270.0,0.44542263]
[1759411392353,0.0838027,119270.0,119260.0,0.50545925]
[1759411392558,0.77073253,119270.0,119260.0,0.50545925]
[1759411394155,1.53053253,119270.0,119260.0,0.50545925]
[1759411394359,0.77072601,119280.0,119270.0,0.1194227]
[1759411394553,1.2044006,119280.0,119270.0,0.1194227]
[1759411394755,1.22494539,119280.0,119270.0,0.1194227]
[1759411395358,0.46514539,119280.0,119270.0,0.1194227]
[1759411395558,1.2043606,119280.0,119270.0,0.1194227]
[1759411396263,1.2063606,119280.0,119270.0,0.1194227]
[1759411396664,0.4466006,119280.0,119270.0,0.1194227]
[1759411396956,1.2043606,119280.0,119270.0,0.1194227]
[1759411397162,1.2063606,119280.0,119270.0,0.1194227]
[1759411399659,0.4466006,119280.0,119270.0,0.1194227]
[1759411399865,1.2063606,119280.0,119270.0,0.1194227]
[1759411400564,0.4466006,119280.0,119270.0,0.1194227]
[1759411400964,1.2063606,119280.0,119270.0,0.1194227]
[1759411402071,0.4466006,119280.0,119270.0,0.1194227]
[1759411402367,1.2063606,119280.0,119270.0,0.1194227]
[1759411402964,1.2063606,119280.0,119270.0,0.17975232]
[1759411404362,1.53248601,119280.0,119270.0,0.17975232]
[1759411404561,1.53248601,119280.0,119270.0,0.06032962]
[1759411405162,0.4466006,119280.0,119270.0,0.17900242]
[1759411405364,1.2063606,119280.0,119270.0,0.17900242]
[1759411405665,1.53248601,119280.0,119270.0,0.17900242]
[1759411406566,0.77072601,119280.0,119270.0,0.17900242]
[1759411406865,1.53048601,119280.0,119270.0,0.17900242]
[1759411407465,1.53048601,119280.0,119270.0,0.1186728]
[1759411409769,0.77072601,119280.0,119270.0,0.1186728]
[1759411409970,1.53048601,119280.0,119270.0,0.1186728]
[1759411410665,0.0838028,119270.0,119260.0,0.50479923]
[1759411410866,0.0838028,119270.0,119260.0,0.17867382]
[1759411411872,0.0838028,119270.0,119260.0,0.18167382]
[1759411412071,0.0838028,119270.0,119260.0,0.50779923]
[1759411412478,0.0838028,119270.0,119260.0,0.50479923]
[1759411412677,0.0838028,119270.0,119260.0,0.50779923]
[1759411413672,0.8435628,119270.0,119260.0,0.50779923]
[1759411413872,0.8435628,119270.0,119260.0,0.18167382]
[1759411414174,0.8435628,119270.0,119260.0,0.50779923]
[1759411414568,0.8435628,119270.0,119260.0,0.18167382]
[1759411415270,0.0838028,119270.0,119260.0,0.18167382]
[1759411415478,0.8435628,119270.0,119260.0,0.18167382]
[1759411415870,0.82993859,119270.0,119260.0,0.18167382]
[1759411416063,0.82993859,119270.0,119260.0,0.1213442]
[1759411416777,0.82993859,119270.0,119260.0,0.50780082]
[1759411417373,0.82993859,119270.0,119260.0,0.44746961]
[1759411417774,0.82993859,119270.0,119260.0,0.50780396]
[1759411418074,0.82993859,119270.0,119260.0,0.44746961]
[1759411419373,0.07017859,119270.0,119260.0,0.44746961]
[1759411419680,0.07017859,119270.0,119260.0,0.50781304]
[1759411419681,0.82989859,119270.0,119260.0,0.50781304]
[1759411420778,0.07017859,119270.0,119260.0,0.50781304]
[1759411420973,0.82989859,119270.0,119260.0,0.50781304]
[1759411421272,0.4446011,119280.0,119270.0,0.1186728]
[1759411421483,1.2043211,119280.0,119270.0,0.5051442]
[1759411422085,0.4446011,119280.0,119270.0,0.5051442]
[1759411422581,1.2043211,119280.0,119270.0,0.5051442]
[1759411423581,1.22535692,119280.0,119270.0,0.44479821]
[1759411425082,1.22535692,119280.0,119270.0,0.1186728]
[1759411425283,1.22535692,119280.0,119270.0,0.44479821]
[1759411428883,1.22535692,119280.0,119270.0,0.1186728]
[1759411429090,1.22535692,119280.0,119270.0,0.44479821]
[1759411429587,0.46563692,119280.0,119270.0,0.44479821]
[1759411429788,1.22535692,119280.0,119270.0,0.44479821]
[1759411430693,0.46563692,119280.0,119270.0,0.44479821]
[1759411430897,1.22535692,119280.0,119270.0,0.44479821]
[1759411431193,1.2043211,119280.0,119270.0,0.5051442]
[1759411432187,0.4446011,119280.0,119270.0,0.5051442]
[1759411432388,1.2042811,119280.0,119270.0,0.5051442]
[1759411434299,0.4446011,119280.0,119270.0,0.5051442]
[1759411434596,0.8434811,119280.0,119270.0,0.44479821]
[1759411434898,0.82985764,119280.0,119270.0,0.5051442]
[1759411437297,0.82985764,119280.0,119270.0,0.17901879]
[1759411437499,0.82985764,119280.0,119270.0,0.5051442]
[1759411437900,0.82985764,119280.0,119270.0,0.80559821]
[1759411437901,0.75968,119280.0,119270.0,0.80559821]
[1759411438100,0.09517028,119290.0,119280.0,0.1199459]
[1759411438300,0.85485028,119290.0,119280.0,0.86719379]
[1759411438796,0.85485028,119290.0,119280.0,0.80687131]
[1759411438797,0.8434689,119290.0,119280.0,0.80687131]
[1759411439398,0.8454689,119290.0,119280.0,0.80687131]
[1759411439697,0.8474689,119290.0,119280.0,0.80687131]
[1759411439898,0.8474689,119290.0,119280.0,0.72307541]
[1759411440491,0.8474289,119290.0,119280.0,0.72307541]
[1759411440687,1.2082289,119290.0,119280.0,0.36227541]
[1759411442398,0.4485889,119290.0,119280.0,0.36227541]
[1759411442598,1.2082289,119290.0,119280.0,0.36227541]
[1759411442900,1.2082289,119290.0,119280.0,0.03615]
[1759411443103,1.2082289,119290.0,119280.0,0.36227541]
[1759411444200,1.53435431,119290.0,119280.0,0.01396]
[1759411444403,1.2082289,119290.0,119280.0,0.01396]
[1759411444694,1.53431431,119290.0,119280.0,0.01396]
[1759411445101,1.53431431,119290.0,119280.0,0.03615]
[1759411445503,1.2081889,119290.0,119280.0,0.03615]
[1759411445704,1.53431431,119290.0,119280.0,0.03615]
[1759411445898,1.2081889,119290.0,119280.0,0.03615]
[1759411449494,1.2081489,119290.0,119280.0,0.03615]
[1759411449895,0.4485889,119290.0,119280.0,0.36227541]
[1759411450100,1.2081489,119290.0,119280.0,0.36227541]
[1759411450403,0.4485889,119290.0,119280.0,0.36227541]
[1759411450605,1.2081489,119290.0,119280.0,0.36227541]
[1759411450905,0.8473489,119290.0,119280.0,0.36227541]
[1759411451309,0.0877889,119290.0,119280.0,0.36227541]
[1759411451810,0.86835707,119290.0,119280.0,0.36227541]
[1759411452308,0.8473489,119290.0,119280.0,0.36227541]
[1759411453506,0.8473489,119290.0,119280.0,0.68840082]
[1759411453707,0.1087963,119290.0,119280.0,1.53299672]
[1759411453917,0.83372693,119290.0,119280.0,1.5933192]
[1759411454320,0.83372693,119290.0,119280.0,1.53299672]
[1759411454514,0.07416693,119290.0,119280.0,1.53299672]
[1759411455319,0.07416693,119290.0,119280.0,1.59323144]
[1759411456314,0.07416693,119290.0,119280.0,1.59281244]
[1759411457717,0.07416693,119290.0,119280.0,0.94098062]
[1759411457919,0.07416693,119290.0,119280.0,1.59281244]
[1759411460819,0.07416693,119290.0,119280.0,2.35229244]
[1759411464822,0.07416693,119290.0,119280.0,2.35225244]
[1759411466222,0.07416693,119290.0,119280.0,1.59281244]
[1759411466422,0.07416693,119290.0,119280.0,2.35225244]
[1759411467222,0.07416693,119290.0,119280.0,1.59281244]
[1759411467620,0.07416693,119290.0,119280.0,2.35221244]
[1759411467820,0.07416693,119290.0,119280.0,1.59281244]
[1759411468021,0.07416693,119290.0,119280.0,2.35221244]
[1759411468417,4e-05,119300.0,119280.0,2.61789363]
[1759411468622,0.0837765,119310.0,119300.0,0.1184016]
[1759411468820,0.0837765,119310.0,119300.0,1.95064315]
[1759411469820,0.0847765,119310.0,119300.0,1.95064315]
[1759411470222,0.0847765,119310.0,119300.0,1.96156496]
[1759411470422,0.0837765,119310.0,119300.0,1.95064315]
[1759411470725,0.0837765,119310.0,119300.0,1.95060315]
[1759411471625,0.0837765,119310.0,119300.0,2.01754032]
[1759411471823,0.0837709,119320.0,119310.0,0.1183948]
[1759411472128,0.0837709,119320.0,119310.0,1.20227057]
[1759411472328,0.0837656,119330.0,119320.0,0.1183842]
[1759411472529,0.0837656,119330.0,119320.0,0.77021602]
[1759411472727,0.0867256,119330.0,119320.0,0.77021602]
[1759411473221,0.0867256,119330.0,119320.0,1.52953602]
[1759411473818,0.0867256,119330.0,119320.0,1.53053602]
[1759411474020,0.45813,119340.0,119330.0,0.1183807]
[1759411474219,0.0943637,119340.0,119330.0,1.13101252]
[1759411474426,0.0837507,119350.0,119340.0,0.1183737]
[1759411474626,0.0837507,119350.0,119340.0,0.77020552]
[1759411474821,0.0867107,119350.0,119340.0,0.77020552]
[1759411476822,0.09714451,119350.0,119340.0,0.77020552]
[1759411478433,0.0867137,119340.0,119330.0,0.44429521]
[1759411479637,0.0867137,119340.0,119330.0,0.44529521]
[1759411479836,0.0867137,119340.0,119330.0,0.44429521]
[1759411480038,0.0867137,119340.0,119330.0,0.44529521]
[1759411483028,1.85846552,119340.0,119330.0,0.03562]
[1759411483234,2.25846552,119340.0,119330.0,0.03562]
[1759411483836,1.93254961,119340.0,119330.0,0.03562]
[1759411484032,2.25846552,119340.0,119330.0,0.03562]
[1759411485341,1.93254961,119340.0,119330.0,0.03562]
[1759411486336,2.58438143,119340.0,119320.0,0.01286]
[1759411486638,0.0867277,119320.0,119310.0,0.03462]
[1759411486941,1.53252361,119320.0,119310.0,0.36053591]
[1759411487539,2.25843952,119320.0,119300.0,0.01286]
[1759411487747,0.77345091,119310.0,119300.0,0.03462]
[1759411488433,0.77345091,119310.0,119300.0,0.36053591]
[1759411488636,0.447535,119310.0,119300.0,0.77023362]
[1759411489046,1.206615,119310.0,119300.0,0.77723362]
[1759411489438,1.206615,119310.0,119300.0,0.78123362]
[1759411489945,1.206655,119310.0,119300.0,0.77423362]
[1759411490344,1.206655,119310.0,119300.0,0.36453591]
[1759411491146,1.53257091,119310.0,119300.0,0.36453591]
[1759411491951,1.53257091,119310.0,119300.0,0.03862]
[1759411492143,1.93257091,119310.0,119300.0,0.004]
[1759411492642,1.17345091,119310.0,119300.0,0.01712]
[1759411492850,1.93257091,119310.0,119300.0,0.01712]
[1759411493347,1.93257091,119310.0,119300.0,0.03962]
[1759411494946,2.25848682,119310.0,119300.0,0.004]
[1759411495549,1.49936682,119310.0,119300.0,0.004]
[1759411495748,0.0837824,119300.0,119280.0,0.01286]
[1759411495943,1.53258461,119290.0,119280.0,0.03536]
[1759411497644,0.77346461,119290.0,119280.0,0.03536]
[1759411497852,1.53262461,119290.0,119280.0,0.01286]
[1759411498044,1.54264536,119290.0,119280.0,0.02086]
[1759411498447,1.54264536,119290.0,119280.0,0.02886]
[1759411498643,0.78348536,119290.0,119280.0,0.02886]
[1759411498852,0.0837957,119280.0,119270.0,0.01286]
[1759411499151,0.77347161,119280.0,119270.0,0.01286]
[1759411499451,1.53267161,119280.0,119270.0,0.03536]
[1759411500052,1.53267161,119280.0,119270.0,0.04636]
[1759411500451,1.2067557,119280.0,119270.0,0.04636]
[1759411500650,1.53267161,119280.0,119270.0,0.04636]
[1759411500843,0.77347161,119280.0,119270.0,0.01286]
[1759411501048,1.53267161,119280.0,119270.0,0.02386]
[1759411501244,2.25858752,119280.0,119270.0,0.011]
[1759411501448,2.25858752,119280.0,119250.0,0.01312]
[1759411501449,0.0867698,119260.0,119250.0,0.01312]
[1759411501650,1.49780162,119260.0,119250.0,0.03562]
[1759411501852,0.73860162,119260.0,119250.0,0.03562]
[1759411502049,1.49784162,119260.0,119250.0,0.03562]
[1759411502448,1.85864162,119260.0,119250.0,0.03562]
[1759411502753,1.85864162,119260.0,119250.0,0.04062]
[1759411502959,1.85964162,119260.0,119250.0,0.04062]
[1759411503456,2.25964162,119260.0,119250.0,0.005]
[1759411504347,0.0867838,119240.0,119230.0,0.03562]
[1759411504541,1.17197971,119240.0,119230.0,0.03562]
[1759411505146,1.49789562,119240.0,119230.0,0.01312]
[1759411505346,1.13861562,119240.0,119230.0,0.01312]
[1759411505748,1.13861562,119240.0,119220.0,0.3965242]
[1759411505749,0.0867909,119230.0,119220.0,0.3965242]
[1759411505956,0.41270681,119230.0,119220.0,0.3965242]
[1759411506155,0.41270681,119230.0,119220.0,0.0357242]
[1759411506554,0.42284379,119230.0,119220.0,0.0357242]
[1759411506852,0.41270681,119230.0,119220.0,0.0357242]
[1759411507152,1.17206681,119230.0,119220.0,0.0387242]
[1759411507755,1.53286681,119230.0,119220.0,0.0192242]
[1759411508155,1.54317447,119230.0,119220.0,0.0192242]
[1759411508653,1.54317447,119230.0,119220.0,0.0417242]
[1759411508961,0.78381447,119230.0,119220.0,0.0417242]
[1759411509161,1.21729856,119230.0,119220.0,0.0417242]
[1759411509361,1.54321447,119230.0,119220.0,0.0417242]
[1759411509854,0.4475909,119230.0,119220.0,0.125562]
[1759411510063,1.53294681,119230.0,119220.0,0.45147791]
[1759411510358,1.2070309,119230.0,119220.0,0.45147791]
[1759411510555,0.4475909,119230.0,119220.0,0.45147791]
[1759411510759,1.2070309,119230.0,119220.0,0.45147791]
[1759411510956,1.53294681,119230.0,119220.0,0.45147791]
[1759411511263,1.53294681,119230.0,119220.0,0.36764011]
[1759411511959,1.54329397,119230.0,119220.0,0.36764011]
[1759411513162,1.53298681,119230.0,119220.0,0.36764011]
[1759411514764,1.2070709,119230.0,119220.0,0.36764011]
[1759411515061,1.53302681,119230.0,119220.0,0.36764011]
[1759411515262,1.53302681,119230.0,119220.0,0.0417242]
[1759411515661,1.53302681,119230.0,119220.0,0.36764011]
[1759411516567,0.77350681,119230.0,119220.0,0.36764011]
[1759411516865,1.53306681,119230.0,119220.0,0.36764011]
[1759411517068,0.77350681,119230.0,119220.0,0.45147791]
[1759411517365,0.0867909,119230.0,119220.0,1.13819382]
[1759411517568,0.8463509,119230.0,119220.0,0.0417242]